[Event "*** Titled Tuesday Blitz"]
[Site "Chess.com"]
[Date "2021.04.06"]
[Round "8"]
[White "PolandHussars"]
[Black "AlexTriapishko"]
[Result "0-1"]
[WhiteElo "2618"]
[BlackElo "2822"]
[TimeControl "180+1"]
[EndTime "11:30:28 PDT"]
[Termination "AlexTriapishko won by checkmate"]

1. e4 {[%clk 0:03:00.9]} 1... c5 {[%clk 0:02:57.1]} 2. Ne2 {[%clk 0:03:00.8]}
2... Nc6 {[%clk 0:02:54.9]} 3. g3 {[%clk 0:03:01.2]} 3... g6 {[%clk 0:02:53.7]}
4. Bg2 {[%clk 0:03:01.8]} 4... Bg7 {[%clk 0:02:54.3]} 5. c3 {[%clk 0:03:02.4]}
5... e5 {[%clk 0:02:53.5]} 6. d3 {[%clk 0:03:01.8]} 6... Nge7 {[%clk 0:02:53.5]}
7. Be3 {[%clk 0:03:02.4]} 7... b6 {[%clk 0:02:53.4]} 8. d4 {[%clk 0:03:02.5]}
8... cxd4 {[%clk 0:02:53.6]} 9. cxd4 {[%clk 0:03:03.4]} 9... exd4 {[%clk
0:02:54.2]} 10. Nxd4 {[%clk 0:03:03.3]} 10... O-O {[%clk 0:02:55.1]} 11. Nc3
{[%clk 0:03:03.1]} 11... Ba6 {[%clk 0:02:54.7]} 12. f4 {[%clk 0:02:56.5]} 12...
Nb4 {[%clk 0:02:50.9]} 13. Kf2 {[%clk 0:02:47.7]} 13... Nd3+ {[%clk 0:02:48.8]}
14. Kg1 {[%clk 0:02:47.7]} 14... Nxb2 {[%clk 0:02:49.1]} 15. Qb3 {[%clk
0:02:46.4]} 15... Nc4 {[%clk 0:02:48.6]} 16. Bf2 {[%clk 0:02:46]} 16... Nc6
{[%clk 0:02:48.2]} 17. Rd1 {[%clk 0:02:43.5]} 17... N4a5 {[%clk 0:02:36.3]} 18.
Nxc6 {[%clk 0:02:29.7]} 18... dxc6 {[%clk 0:02:26.5]} 19. Rxd8 {[%clk
0:02:16.7]} 19... Nxb3 {[%clk 0:02:26.1]} 20. Rxa8 {[%clk 0:02:17.3]} 20... Rxa8
{[%clk 0:02:26]} 21. e5 {[%clk 0:02:17.9]} 21... Na5 {[%clk 0:02:24.9]} 22. Ne4
{[%clk 0:02:14.9]} 22... Bc4 {[%clk 0:02:18.9]} 23. a3 {[%clk 0:02:10.6]} 23...
Bd5 {[%clk 0:02:17.4]} 24. h4 {[%clk 0:02:08.1]} 24... h5 {[%clk 0:02:10.2]} 25.
Kh2 {[%clk 0:02:07.9]} 25... Nc4 {[%clk 0:01:56.9]} 26. a4 {[%clk 0:02:07]}
26... Nb2 {[%clk 0:01:56.5]} 27. Ra1 {[%clk 0:02:01.4]} 27... Nd3 {[%clk
0:01:53]} 28. Be3 {[%clk 0:01:58.2]} 28... Nb4 {[%clk 0:01:52.9]} 29. Rc1 {[%clk
0:01:52.2]} 29... c5 {[%clk 0:01:48.3]} 30. Rd1 {[%clk 0:01:43.9]} 30... Bc6
{[%clk 0:01:11.6]} 31. a5 {[%clk 0:01:40.9]} 31... Rb8 {[%clk 0:01:06.8]} 32.
Rd6 {[%clk 0:01:34.8]} 32... Ba8 {[%clk 0:01:00.8]} 33. e6 {[%clk 0:01:33.2]}
33... fxe6 {[%clk 0:00:54.9]} 34. Rxe6 {[%clk 0:01:34.1]} 34... Nd5 {[%clk
0:00:52]} 35. Bc1 {[%clk 0:01:19.5]} 35... c4 {[%clk 0:00:41.1]} 36. Rxg6 {[%clk
0:01:18.2]} 36... c3 {[%clk 0:00:41.5]} 37. f5 {[%clk 0:01:09]} 37... Ne7 {[%clk
0:00:16.2]} 38. Rxg7+ {[%clk 0:01:05.1]} 38... Kxg7 {[%clk 0:00:16.3]} 39. f6+
{[%clk 0:01:06]} 39... Kf7 {[%clk 0:00:16]} 40. fxe7 {[%clk 0:01:06.5]} 40...
Bxe4 {[%clk 0:00:15.6]} 41. Bxe4 {[%clk 0:01:05]} 41... Kxe7 {[%clk 0:00:15.1]}
42. a6 {[%clk 0:01:02.8]} 42... Ke6 {[%clk 0:00:09.6]} 43. g4 {[%clk 0:01:00.8]}
43... Ke5 {[%clk 0:00:06.8]} 44. Bc2 {[%clk 0:00:59.4]} 44... hxg4 {[%clk
0:00:04.7]} 45. h5 {[%clk 0:00:59.9]} 45... b5 {[%clk 0:00:03.6]} 46. Kg3 {[%clk
0:01:00]} 46... Kd4 {[%clk 0:00:02.8]} 47. h6 {[%clk 0:00:59.1]} 47... b4 {[%clk
0:00:03.2]} 48. Bb3 {[%clk 0:00:58.2]} 48... Kd3 {[%clk 0:00:02.4]} 49. Kxg4
{[%clk 0:00:56.9]} 49... c2 {[%clk 0:00:02.2]} 50. h7 {[%clk 0:00:51.7]} 50...
Rh8 {[%clk 0:00:02.3]} 51. Be6 {[%clk 0:00:50.9]} 51... Kc3 {[%clk 0:00:01.4]}
52. Bf5 {[%clk 0:00:44.8]} 52... b3 {[%clk 0:00:01.8]} 53. Bg5 {[%clk
0:00:45.3]} 53... Rxh7 {[%clk 0:00:02]} 54. Bxh7 {[%clk 0:00:37.6]} 54... b2
{[%clk 0:00:02.4]} 55. Bf6+ {[%clk 0:00:37.2]} 55... Kb3 {[%clk 0:00:03]} 56.
Bg8+ {[%clk 0:00:37.3]} 56... Ka3 {[%clk 0:00:03.4]} 57. Be7+ {[%clk 0:00:35.8]}
57... Ka4 {[%clk 0:00:03.8]} 58. Be6 {[%clk 0:00:25.5]} 58... c1=Q {[%clk
0:00:04.1]} 59. Bd7+ {[%clk 0:00:26.4]} 59... Ka5 {[%clk 0:00:04.6]} 60. Bd8+
{[%clk 0:00:26.6]} 60... Kxa6 {[%clk 0:00:05]} 61. Bf5 {[%clk 0:00:27]} 61...
Qc4+ {[%clk 0:00:04.5]} 62. Kf3 {[%clk 0:00:26.4]} 62... Qb3+ {[%clk 0:00:03.7]}
63. Kf4 {[%clk 0:00:24.5]} 63... b1=Q {[%clk 0:00:04.2]} 64. Bxb1 {[%clk
0:00:24.9]} 64... Qxb1 {[%clk 0:00:04.1]} 65. Bg5 {[%clk 0:00:25.8]} 65... Qb7
{[%clk 0:00:05]} 66. Bf6 {[%clk 0:00:25.6]} 66... Kb5 {[%clk 0:00:05.9]} 67. Ke3
{[%clk 0:00:25.3]} 67... a6 {[%clk 0:00:06.8]} 68. Kd2 {[%clk 0:00:25.8]} 68...
Qc6 {[%clk 0:00:07.7]} 69. Bd4 {[%clk 0:00:25.7]} 69... a5 {[%clk 0:00:08.6]}
70. Bc3 {[%clk 0:00:25.8]} 70... a4 {[%clk 0:00:09.5]} 71. Kc2 {[%clk
0:00:26.7]} 71... a3 {[%clk 0:00:09.1]} 72. Kb3 {[%clk 0:00:26.9]} 72... a2
{[%clk 0:00:10]} 73. Kxa2 {[%clk 0:00:27.3]} 73... Qxc3 {[%clk 0:00:10.1]} 74.
Kb1 {[%clk 0:00:28.2]} 74... Qd2 {[%clk 0:00:10.4]} 75. Ka1 {[%clk 0:00:28.5]}
75... Kb4 {[%clk 0:00:11.3]} 76. Kb1 {[%clk 0:00:29.4]} 76... Kb3 {[%clk
0:00:12.2]} 77. Ka1 {[%clk 0:00:30.3]} 77... Qd1# {[%clk 0:00:12.8]} 0-1

[Event "*** Titled Tuesday Blitz"]
[Site "Chess.com"]
[Date "2021.04.06"]
[Round "8"]
[White "XDPS"]
[Black "mishanick"]
[Result "0-1"]
[WhiteElo "2747"]
[BlackElo "2941"]
[TimeControl "180+1"]
[EndTime "11:30:31 PDT"]
[Termination "mishanick won on time"]

1. e4 {[%clk 0:03:00.9]} 1... c5 {[%clk 0:02:56]} 2. Nf3 {[%clk 0:03:00.1]} 2...
d6 {[%clk 0:02:56.7]} 3. Bb5+ {[%clk 0:02:53]} 3... Nd7 {[%clk 0:02:56.3]} 4.
O-O {[%clk 0:02:52.1]} 4... a6 {[%clk 0:02:54.3]} 5. Bd3 {[%clk 0:02:51]} 5...
Ngf6 {[%clk 0:02:54.3]} 6. Re1 {[%clk 0:02:51]} 6... b5 {[%clk 0:02:54.7]} 7. c4
{[%clk 0:02:50.6]} 7... Rb8 {[%clk 0:02:53.7]} 8. cxb5 {[%clk 0:02:48.7]} 8...
axb5 {[%clk 0:02:54.6]} 9. a3 {[%clk 0:02:49.2]} 9... e6 {[%clk 0:02:54.3]} 10.
Bc2 {[%clk 0:02:49.3]} 10... Be7 {[%clk 0:02:53.2]} 11. d4 {[%clk 0:02:49.8]}
11... cxd4 {[%clk 0:02:52.3]} 12. Nxd4 {[%clk 0:02:49.8]} 12... Qc7 {[%clk
0:02:46.1]} 13. Nc3 {[%clk 0:02:48.8]} 13... Ba6 {[%clk 0:02:46.3]} 14. Bd3
{[%clk 0:02:44.6]} 14... b4 {[%clk 0:02:27.1]} 15. axb4 {[%clk 0:02:36.3]} 15...
Bxd3 {[%clk 0:02:27.1]} 16. Qxd3 {[%clk 0:02:36.7]} 16... Ne5 {[%clk 0:02:20.2]}
17. Qg3 {[%clk 0:02:24.1]} 17... O-O {[%clk 0:02:15.5]} 18. b5 {[%clk
0:02:24.2]} 18... Qc4 {[%clk 0:02:11.9]} 19. Ra4 {[%clk 0:02:24.1]} 19... Qc7
{[%clk 0:01:59.3]} 20. f4 {[%clk 0:01:56.6]} 20... Ng6 {[%clk 0:01:58.7]} 21.
Nc6 {[%clk 0:01:55.8]} 21... Ra8 {[%clk 0:01:58.7]} 22. Rc4 {[%clk 0:01:31.8]}
22... Rfe8 {[%clk 0:01:28.3]} 23. Be3 {[%clk 0:01:21.8]} 23... Qb7 {[%clk
0:01:24.8]} 24. f5 {[%clk 0:01:13.8]} 24... exf5 {[%clk 0:01:23.4]} 25. exf5
{[%clk 0:01:12.5]} 25... Ne5 {[%clk 0:01:23.5]} 26. Nxe5 {[%clk 0:01:09.2]}
26... dxe5 {[%clk 0:01:24.4]} 27. Rc6 {[%clk 0:01:05.3]} 27... Rac8 {[%clk
0:01:14.9]} 28. Rxc8 {[%clk 0:00:56.7]} 28... Qxc8 {[%clk 0:01:05.4]} 29. Qf3
{[%clk 0:00:52.6]} 29... e4 {[%clk 0:00:48.9]} 30. Qf4 {[%clk 0:00:47.5]} 30...
Bc5 {[%clk 0:00:46.4]} 31. h3 {[%clk 0:00:36]} 31... h6 {[%clk 0:00:44.4]} 32.
Qf2 {[%clk 0:00:29.6]} 32... Bxe3 {[%clk 0:00:35.1]} 33. Rxe3 {[%clk 0:00:30.5]}
33... Qc5 {[%clk 0:00:31.2]} 34. Kh2 {[%clk 0:00:20.8]} 34... Rd8 {[%clk
0:00:24.5]} 35. Qf4 {[%clk 0:00:19.5]} 35... Rd3 {[%clk 0:00:14.5]} 36. Re2
{[%clk 0:00:06.5]} 36... e3 {[%clk 0:00:14.3]} 37. Qf3 {[%clk 0:00:02.5]} 37...
Kh7 {[%clk 0:00:13]} 38. g4 {[%clk 0:00:02.5]} 38... Rd2 {[%clk 0:00:10.3]} 39.
Kg2 {[%clk 0:00:03]} 39... Qd4 {[%clk 0:00:09.4]} 40. b6 {[%clk 0:00:02.3]}
40... Qxb6 {[%clk 0:00:09]} 41. Rxd2 {[%clk 0:00:01.2]} 41... exd2 {[%clk
0:00:09]} 42. Nd1 {[%clk 0:00:02.1]} 42... Qd4 {[%clk 0:00:07.6]} 43. Qe2 {[%clk
0:00:02.5]} 43... Nd5 {[%clk 0:00:07.4]} 44. Qf3 {[%clk 0:00:03]} 44... Nf4+
{[%clk 0:00:06.2]} 45. Kg3 {[%clk 0:00:03.6]} 45... Nd5 {[%clk 0:00:04]} 46. Kg2
{[%clk 0:00:03.7]} 46... Qe5 {[%clk 0:00:03.9]} 47. Kf2 {[%clk 0:00:03.6]} 47...
Nf4 {[%clk 0:00:04.2]} 48. Ne3 {[%clk 0:00:03.1]} 48... Nd3+ {[%clk 0:00:03.8]}
49. Ke2 {[%clk 0:00:02.6]} 49... Ne1 {[%clk 0:00:04]} 50. Qf2 {[%clk 0:00:02.5]}
50... Qxb2 {[%clk 0:00:02.6]} 51. Nd1 {[%clk 0:00:02.9]} 51... Qc2 {[%clk
0:00:02.6]} 52. Qe3 {[%clk 0:00:02.7]} 52... Qc4+ {[%clk 0:00:03]} 53. Kxd2
{[%clk 0:00:02.8]} 53... Ng2 {[%clk 0:00:03.7]} 54. Qd3 {[%clk 0:00:02.8]} 54...
Qf4+ {[%clk 0:00:03.7]} 55. Kc3 {[%clk 0:00:03.4]} 55... Qh2 {[%clk 0:00:03.9]}
56. f6+ {[%clk 0:00:03.6]} 56... g6 {[%clk 0:00:04.6]} 57. Qd7 {[%clk
0:00:04.2]} 57... Qe5+ {[%clk 0:00:04.8]} 58. Kb3 {[%clk 0:00:04.1]} 58... Qxf6
{[%clk 0:00:04.9]} 59. Nc3 {[%clk 0:00:05]} 59... Nf4 {[%clk 0:00:05.1]} 60. Ne4
{[%clk 0:00:04.6]} 60... Qb6+ {[%clk 0:00:05.2]} 61. Kc4 {[%clk 0:00:04.3]}
61... Kg7 {[%clk 0:00:05]} 62. Qd8 {[%clk 0:00:03.2]} 62... Qxd8 {[%clk
0:00:04.5]} 0-1

[Event "*** Titled Tuesday Blitz"]
[Site "Chess.com"]
[Date "2021.04.06"]
[Round "8"]
[White "Aygehovit1992"]
[Black "Byniolus"]
[Result "0-1"]
[WhiteElo "2657"]
[BlackElo "2879"]
[TimeControl "180+1"]
[EndTime "11:30:31 PDT"]
[Termination "Byniolus won by checkmate"]

1. e4 {[%clk 0:03:00.9]} 1... d6 {[%clk 0:03:00]} 2. Nc3 {[%clk 0:03:00.7]} 2...
Nf6 {[%clk 0:03:00.9]} 3. d3 {[%clk 0:03:00.9]} 3... c6 {[%clk 0:02:58.8]} 4. f4
{[%clk 0:03:01]} 4... b5 {[%clk 0:02:58.5]} 5. Nf3 {[%clk 0:03:01.9]} 5... e6
{[%clk 0:02:51.1]} 6. h3 {[%clk 0:03:02.2]} 6... d5 {[%clk 0:02:50.4]} 7. g4
{[%clk 0:03:00.6]} 7... b4 {[%clk 0:02:45.3]} 8. e5 {[%clk 0:02:41.9]} 8... bxc3
{[%clk 0:02:39.5]} 9. exf6 {[%clk 0:02:42]} 9... Qxf6 {[%clk 0:02:09.4]} 10.
bxc3 {[%clk 0:02:41.1]} 10... Bb4 {[%clk 0:01:59.1]} 11. cxb4 {[%clk 0:02:30.8]}
11... Qxa1 {[%clk 0:01:58.4]} 12. Bg2 {[%clk 0:02:17.9]} 12... a5 {[%clk
0:01:44.8]} 13. a3 {[%clk 0:02:07.6]} 13... axb4 {[%clk 0:01:39.4]} 14. axb4
{[%clk 0:02:08.5]} 14... Na6 {[%clk 0:01:32]} 15. O-O {[%clk 0:02:08.1]} 15...
Nxb4 {[%clk 0:01:28.2]} 16. Qd2 {[%clk 0:01:51.9]} 16... c5 {[%clk 0:01:22.4]}
17. Qf2 {[%clk 0:01:47.8]} 17... Qc3 {[%clk 0:01:00.9]} 18. Bd2 {[%clk
0:01:34.1]} 18... Qxc2 {[%clk 0:00:57.1]} 19. Rc1 {[%clk 0:01:33.8]} 19... Nxd3
{[%clk 0:00:55.3]} 20. Rxc2 {[%clk 0:01:33.5]} 20... Nxf2 {[%clk 0:00:55.9]} 21.
Kxf2 {[%clk 0:01:34.4]} 21... c4 {[%clk 0:00:54]} 22. Ne5 {[%clk 0:01:34.6]}
22... Ra6 {[%clk 0:00:29.7]} 23. g5 {[%clk 0:01:27]} 23... O-O {[%clk
0:00:22.9]} 24. Bb4 {[%clk 0:01:25.2]} 24... Re8 {[%clk 0:00:23.2]} 25. Ke3
{[%clk 0:01:23.5]} 25... Ra4 {[%clk 0:00:18.1]} 26. Bc5 {[%clk 0:01:20.6]} 26...
f6 {[%clk 0:00:16.6]} 27. gxf6 {[%clk 0:01:18.9]} 27... gxf6 {[%clk 0:00:17.5]}
28. Ng4 {[%clk 0:01:19.6]} 28... Kf7 {[%clk 0:00:18.1]} 29. Rb2 {[%clk
0:01:15.8]} 29... h5 {[%clk 0:00:13.8]} 30. Nf2 {[%clk 0:01:14.2]} 30... Ra5
{[%clk 0:00:11.5]} 31. Bb6 {[%clk 0:01:11.9]} 31... Ra6 {[%clk 0:00:11]} 32. Bf3
{[%clk 0:01:10.9]} 32... Rh8 {[%clk 0:00:10]} 33. Bc5 {[%clk 0:01:08.9]} 33...
Ra5 {[%clk 0:00:08.6]} 34. Bd4 {[%clk 0:01:06.1]} 34... Ra3+ {[%clk 0:00:08.3]}
35. Ke2 {[%clk 0:01:06.5]} 35... Ba6 {[%clk 0:00:08]} 36. Rb6 {[%clk 0:01:02.7]}
36... c3+ {[%clk 0:00:07]} 37. Kd1 {[%clk 0:00:40.2]} 37... Bc4 {[%clk
0:00:02.8]} 38. Kc2 {[%clk 0:00:29.9]} 38... Ra2+ {[%clk 0:00:03.1]} 39. Kxc3
{[%clk 0:00:29.3]} 39... Ra3+ {[%clk 0:00:03.6]} 40. Kb4 {[%clk 0:00:29.6]}
40... Rxf3 {[%clk 0:00:04.5]} 41. f5 {[%clk 0:00:26.9]} 41... Rb3+ {[%clk
0:00:03.9]} 42. Kc5 {[%clk 0:00:26.6]} 42... Rxb6 {[%clk 0:00:03.2]} 43. Kxb6
{[%clk 0:00:27.5]} 43... e5 {[%clk 0:00:03.5]} 44. Bc5 {[%clk 0:00:26.7]} 44...
d4 {[%clk 0:00:03.7]} 45. Ne4 {[%clk 0:00:26.6]} 45... Bd5 {[%clk 0:00:04.2]}
46. Nd6+ {[%clk 0:00:26.5]} 46... Kg7 {[%clk 0:00:04.7]} 47. Kc7 {[%clk
0:00:10.4]} 47... h4 {[%clk 0:00:05.1]} 48. Kd7 {[%clk 0:00:08.7]} 48... d3
{[%clk 0:00:05.5]} 49. Be3 {[%clk 0:00:08.8]} 49... Bg2 {[%clk 0:00:05.6]} 50.
Ke6 {[%clk 0:00:04.3]} 50... Bxh3 {[%clk 0:00:04.8]} 51. Ne4 {[%clk 0:00:04.7]}
51... Re8+ {[%clk 0:00:03.7]} 52. Kd7 {[%clk 0:00:03.1]} 52... Bxf5+ {[%clk
0:00:04]} 53. Kxe8 {[%clk 0:00:03.8]} 53... Bxe4 {[%clk 0:00:04.9]} 54. Ke7
{[%clk 0:00:04.4]} 54... f5 {[%clk 0:00:05.3]} 55. Ke6 {[%clk 0:00:04.3]} 55...
f4 {[%clk 0:00:06.2]} 56. Bg1 {[%clk 0:00:04.7]} 56... d2 {[%clk 0:00:06.2]} 57.
Kxe5 {[%clk 0:00:05.1]} 57... Bf3 {[%clk 0:00:06.6]} 58. Kxf4 {[%clk 0:00:04.3]}
58... d1=Q {[%clk 0:00:07.5]} 59. Be3 {[%clk 0:00:04.1]} 59... Kg6 {[%clk
0:00:08.4]} 60. Bf2 {[%clk 0:00:02.3]} 60... Qe2 {[%clk 0:00:09.3]} 61. Bxh4
{[%clk 0:00:01.9]} 61... Qe4+ {[%clk 0:00:09]} 62. Kg3 {[%clk 0:00:02.8]} 62...
Qg4+ {[%clk 0:00:09.4]} 63. Kf2 {[%clk 0:00:02.8]} 63... Qxh4+ {[%clk
0:00:09.7]} 64. Kg1 {[%clk 0:00:03.7]} 64... Qg3+ {[%clk 0:00:09.6]} 65. Kf1
{[%clk 0:00:03.8]} 65... Qg2+ {[%clk 0:00:10.5]} 66. Ke1 {[%clk 0:00:04.4]}
66... Qe2# {[%clk 0:00:11.4]} 0-1

[Event "*** Titled Tuesday Blitz"]
[Site "Chess.com"]
[Date "2021.04.06"]
[Round "8"]
[White "Ind1anStar"]
[Black "mikolka1985"]
[Result "1-0"]
[WhiteElo "2519"]
[BlackElo "2649"]
[TimeControl "180+1"]
[EndTime "11:30:36 PDT"]
[Termination "Ind1anStar won on time"]

1. c4 {[%clk 0:03:00.9]} 1... Nf6 {[%clk 0:02:58.1]} 2. Nc3 {[%clk 0:03:00.5]}
2... e5 {[%clk 0:02:58.1]} 3. g3 {[%clk 0:03:00.2]} 3... Bb4 {[%clk 0:02:57.1]}
4. Bg2 {[%clk 0:02:59.7]} 4... Bxc3 {[%clk 0:02:54.9]} 5. bxc3 {[%clk
0:02:59.5]} 5... O-O {[%clk 0:02:54.7]} 6. e4 {[%clk 0:02:59.5]} 6... d6 {[%clk
0:02:52.8]} 7. Ne2 {[%clk 0:02:59.5]} 7... c6 {[%clk 0:02:45.7]} 8. O-O {[%clk
0:02:58.2]} 8... d5 {[%clk 0:02:45.5]} 9. cxd5 {[%clk 0:02:55.5]} 9... cxd5
{[%clk 0:02:45.3]} 10. exd5 {[%clk 0:02:54.9]} 10... Nxd5 {[%clk 0:02:45]} 11.
d4 {[%clk 0:02:55.4]} 11... exd4 {[%clk 0:02:41.4]} 12. Qxd4 {[%clk 0:02:45.4]}
12... Nb6 {[%clk 0:02:32.1]} 13. Ba3 {[%clk 0:02:41.5]} 13... Re8 {[%clk
0:02:31.4]} 14. Qxd8 {[%clk 0:02:34.7]} 14... Rxd8 {[%clk 0:02:30.9]} 15. Rfd1
{[%clk 0:02:34.7]} 15... Re8 {[%clk 0:02:28.9]} 16. Nd4 {[%clk 0:02:30.6]} 16...
Nc4 {[%clk 0:02:27]} 17. Re1 {[%clk 0:02:05.8]} 17... Rd8 {[%clk 0:02:10.9]} 18.
Be7 {[%clk 0:02:04.1]} 18... Re8 {[%clk 0:02:10.6]} 19. Nb5 {[%clk 0:01:24.1]}
19... Na6 {[%clk 0:02:00.7]} 20. Bd5 {[%clk 0:01:24.1]} 20... Be6 {[%clk
0:01:55.7]} 21. Bxe6 {[%clk 0:00:55.9]} 21... fxe6 {[%clk 0:01:54.5]} 22. Rxe6
{[%clk 0:00:56.5]} 22... Kf7 {[%clk 0:01:52.7]} 23. Rae1 {[%clk 0:00:56.3]}
23... Rac8 {[%clk 0:01:29.3]} 24. R6e4 {[%clk 0:00:52.7]} 24... Nd2 {[%clk
0:01:15.4]} 25. Nd6+ {[%clk 0:00:43.3]} 25... Kg8 {[%clk 0:01:14.4]} 26. Nxe8
{[%clk 0:00:37]} 26... Nxe4 {[%clk 0:01:12.2]} 27. Nd6 {[%clk 0:00:36.8]} 27...
Nxd6 {[%clk 0:01:11.3]} 28. Bxd6 {[%clk 0:00:37]} 28... Rd8 {[%clk 0:01:02.8]}
29. Ba3 {[%clk 0:00:26.9]} 29... Rd7 {[%clk 0:01:01.6]} 30. Re8+ {[%clk
0:00:21.5]} 30... Kf7 {[%clk 0:01:00.9]} 31. Ra8 {[%clk 0:00:21.2]} 31... b6
{[%clk 0:01:00.1]} 32. Kg2 {[%clk 0:00:21.4]} 32... Ke6 {[%clk 0:00:57.6]} 33.
Re8+ {[%clk 0:00:16.8]} 33... Kd5 {[%clk 0:00:56.5]} 34. Kf3 {[%clk 0:00:17]}
34... Kc4 {[%clk 0:00:55.7]} 35. Rc8+ {[%clk 0:00:16.3]} 35... Kd3 {[%clk
0:00:44.1]} 36. c4 {[%clk 0:00:14.3]} 36... Rf7+ {[%clk 0:00:40.4]} 37. Kg2
{[%clk 0:00:14.6]} 37... Ke2 {[%clk 0:00:37.3]} 38. f4 {[%clk 0:00:14.8]} 38...
Kd3 {[%clk 0:00:30.1]} 39. c5 {[%clk 0:00:15.2]} 39... bxc5 {[%clk 0:00:24.5]}
40. Bxc5 {[%clk 0:00:14.9]} 40... Rb7 {[%clk 0:00:23.9]} 41. Kf3 {[%clk
0:00:11.7]} 41... Nc7 {[%clk 0:00:21.4]} 42. a3 {[%clk 0:00:10.8]} 42... Ne6
{[%clk 0:00:20.3]} 43. Bb4 {[%clk 0:00:11.2]} 43... Nd4+ {[%clk 0:00:19.8]} 44.
Kg4 {[%clk 0:00:11.6]} 44... Rb5 {[%clk 0:00:18.3]} 45. Rd8 {[%clk 0:00:11.3]}
45... h5+ {[%clk 0:00:16.6]} 46. Kh3 {[%clk 0:00:11.7]} 46... a5 {[%clk
0:00:14.9]} 47. Bf8 {[%clk 0:00:09.2]} 47... Ke4 {[%clk 0:00:12.2]} 48. Bxg7
{[%clk 0:00:09.1]} 48... Nf3 {[%clk 0:00:12.2]} 49. Re8+ {[%clk 0:00:08.2]}
49... Kd3 {[%clk 0:00:11.6]} 50. Rd8+ {[%clk 0:00:07.9]} 50... Ke2 {[%clk
0:00:11.2]} 51. g4 {[%clk 0:00:06.5]} 51... hxg4+ {[%clk 0:00:06.3]} 52. Kxg4
{[%clk 0:00:07.4]} 52... Nxh2+ {[%clk 0:00:06.8]} 53. Kh3 {[%clk 0:00:04.4]}
53... Nf3 {[%clk 0:00:06.3]} 54. Re8+ {[%clk 0:00:03.3]} 54... Kf2 {[%clk
0:00:05.8]} 55. Kg4 {[%clk 0:00:03.9]} 55... Nh2+ {[%clk 0:00:04.8]} 56. Kh4
{[%clk 0:00:04.4]} 56... Nf3+ {[%clk 0:00:04.6]} 57. Kg4 {[%clk 0:00:04.8]}
57... Kg2 {[%clk 0:00:03.9]} 58. Re2+ {[%clk 0:00:03.9]} 58... Kf1 {[%clk
0:00:03.3]} 59. Kxf3 {[%clk 0:00:04.8]} 59... Rb3+ {[%clk 0:00:03]} 60. Re3
{[%clk 0:00:05.3]} 60... Rb1 {[%clk 0:00:02.4]} 61. Be5 {[%clk 0:00:05.5]} 1-0

[Event "*** Titled Tuesday Blitz"]
[Site "Chess.com"]
[Date "2021.04.06"]
[Round "8"]
[White "ViditYT"]
[Black "Witik"]
[Result "1-0"]
[WhiteElo "2938"]
[BlackElo "2730"]
[TimeControl "180+1"]
[EndTime "11:30:42 PDT"]
[Termination "ViditYT won on time"]

1. d4 {[%clk 0:03:00.9]} 1... Nf6 {[%clk 0:02:56.3]} 2. c4 {[%clk 0:03:00.7]}
2... g6 {[%clk 0:02:56.6]} 3. g3 {[%clk 0:03:00.4]} 3... Bg7 {[%clk 0:02:54.5]}
4. Bg2 {[%clk 0:03:00.7]} 4... O-O {[%clk 0:02:55]} 5. Nc3 {[%clk 0:03:01.1]}
5... d6 {[%clk 0:02:55.5]} 6. Nf3 {[%clk 0:03:01.5]} 6... Nc6 {[%clk 0:02:55.9]}
7. O-O {[%clk 0:02:59.3]} 7... a6 {[%clk 0:02:56]} 8. b3 {[%clk 0:02:57.2]} 8...
Rb8 {[%clk 0:02:54.7]} 9. d5 {[%clk 0:02:55.6]} 9... Na5 {[%clk 0:02:39]} 10.
Bg5 {[%clk 0:02:48.1]} 10... c5 {[%clk 0:02:31.7]} 11. dxc6 {[%clk 0:02:46.5]}
11... bxc6 {[%clk 0:02:28.8]} 12. c5 {[%clk 0:02:36.7]} 12... h6 {[%clk
0:02:18.4]} 13. Bd2 {[%clk 0:02:23.4]} 13... d5 {[%clk 0:01:44.6]} 14. Bf4
{[%clk 0:02:10.4]} 14... Rb4 {[%clk 0:01:39]} 15. Be5 {[%clk 0:02:04.7]} 15...
Nd7 {[%clk 0:01:13.9]} 16. Bxg7 {[%clk 0:02:04.1]} 16... Kxg7 {[%clk 0:01:14.2]}
17. Rc1 {[%clk 0:01:36.1]} 17... e5 {[%clk 0:01:08.7]} 18. Qd2 {[%clk
0:01:27.7]} 18... Rb8 {[%clk 0:01:00.4]} 19. e4 {[%clk 0:01:24.2]} 19... d4
{[%clk 0:00:58.2]} 20. Na4 {[%clk 0:01:24.5]} 20... Nb7 {[%clk 0:00:49.6]} 21.
Ne1 {[%clk 0:01:24.1]} 21... a5 {[%clk 0:00:45.5]} 22. Nd3 {[%clk 0:01:23.8]}
22... Qe7 {[%clk 0:00:37.2]} 23. f4 {[%clk 0:01:23.5]} 23... f6 {[%clk
0:00:30.3]} 24. Rf2 {[%clk 0:01:22.1]} 24... Nd8 {[%clk 0:00:25.8]} 25. Qxa5
{[%clk 0:01:17.7]} 25... Ne6 {[%clk 0:00:23]} 26. fxe5 {[%clk 0:01:09.1]} 26...
Nxe5 {[%clk 0:00:23.2]} 27. Nxe5 {[%clk 0:01:05.9]} 27... fxe5 {[%clk
0:00:24.1]} 28. Rxf8 {[%clk 0:01:06.1]} 28... Nxf8 {[%clk 0:00:17.4]} 29. Nb6
{[%clk 0:01:05.2]} 29... Bg4 {[%clk 0:00:17]} 30. Qd2 {[%clk 0:00:59]} 30... Rd8
{[%clk 0:00:13.8]} 31. a4 {[%clk 0:00:58.1]} 31... d3 {[%clk 0:00:13.9]} 32. a5
{[%clk 0:00:57.7]} 32... Be2 {[%clk 0:00:12.5]} 33. a6 {[%clk 0:00:54.2]} 33...
Ne6 {[%clk 0:00:12.2]} 34. b4 {[%clk 0:00:48.5]} 34... Nd4 {[%clk 0:00:12.4]}
35. Rb1 {[%clk 0:00:35.7]} 35... Rf8 {[%clk 0:00:12.4]} 36. Nc4 {[%clk
0:00:24.6]} 36... Qf6 {[%clk 0:00:10.4]} 37. Kh1 {[%clk 0:00:23.8]} 37... Qf2
{[%clk 0:00:08.2]} 38. a7 {[%clk 0:00:17.4]} 38... Nf3 {[%clk 0:00:07.8]} 39.
Qe3 {[%clk 0:00:10.8]} 39... Qxe3 {[%clk 0:00:04.6]} 40. Nxe3 {[%clk 0:00:11.7]}
40... d2 {[%clk 0:00:05.2]} 41. Bxf3 {[%clk 0:00:07]} 41... Bxf3+ {[%clk
0:00:05.1]} 42. Kg1 {[%clk 0:00:07.5]} 42... Ra8 {[%clk 0:00:05.3]} 43. Ra1
{[%clk 0:00:05.6]} 43... Bxe4 {[%clk 0:00:05.5]} 44. Kf2 {[%clk 0:00:05.9]}
44... Bd3 {[%clk 0:00:03.7]} 45. Nd1 {[%clk 0:00:06.3]} 45... Bc2 {[%clk
0:00:03.3]} 46. Ke2 {[%clk 0:00:06.6]} 46... e4 {[%clk 0:00:03.1]} 47. Kxd2
{[%clk 0:00:07]} 47... Bxd1 {[%clk 0:00:02.5]} 48. Kxd1 {[%clk 0:00:07.3]} 48...
Kf6 {[%clk 0:00:03.2]} 49. Kd2 {[%clk 0:00:07.1]} 49... Ke5 {[%clk 0:00:04.1]}
50. Ke3 {[%clk 0:00:07.4]} 50... Kd5 {[%clk 0:00:04.7]} 51. Rd1+ {[%clk
0:00:05.1]} 51... Kc4 {[%clk 0:00:05.2]} 52. Rd4+ {[%clk 0:00:05.1]} 52... Kb5
{[%clk 0:00:05.8]} 53. Kxe4 {[%clk 0:00:04.4]} 53... Rxa7 {[%clk 0:00:06.3]} 54.
h4 {[%clk 0:00:04.7]} 54... Re7+ {[%clk 0:00:06.3]} 55. Kf4 {[%clk 0:00:05.1]}
55... Rf7+ {[%clk 0:00:06.6]} 56. Ke5 {[%clk 0:00:05.5]} 56... Rf3 {[%clk
0:00:05.6]} 57. Rg4 {[%clk 0:00:05.5]} 57... g5 {[%clk 0:00:02.9]} 58. hxg5
{[%clk 0:00:05.6]} 58... hxg5 {[%clk 0:00:03.8]} 59. Rxg5 {[%clk 0:00:04.8]}
59... Kxb4 {[%clk 0:00:04]} 60. Kd6 {[%clk 0:00:05.4]} 60... Kb5 {[%clk
0:00:04.1]} 61. g4 {[%clk 0:00:06]} 61... Rd3+ {[%clk 0:00:04.5]} 62. Kc7 {[%clk
0:00:06.4]} 62... Rc3 {[%clk 0:00:03.8]} 63. Rf5 {[%clk 0:00:05.5]} 63... Rg3
{[%clk 0:00:03.4]} 64. g5 {[%clk 0:00:05.8]} 64... Rg1 {[%clk 0:00:04]} 65. Kd6
{[%clk 0:00:05.9]} 65... Rd1+ {[%clk 0:00:03.8]} 66. Ke6 {[%clk 0:00:06.1]}
66... Re1+ {[%clk 0:00:02.6]} 67. Kf7 {[%clk 0:00:06.5]} 1-0